bitfinex-derivatives/quotes_ETHF0:USTF0_20250116
["timestamp","ask_amount","ask_price","bid_price","bid_amount"]
[1737038455631,0.532,3321.3,3319.5,0.5324]
[1737038455632,0.60261,3319.7,3319.5,0.5324]
[1737038455825,3.2078,3320.0,3319.4,40.8]
[1737038456030,3.2078,3319.6,3319.2,9.31790454]
[1737038456231,0.60268,3319.3,3319.2,9.31790454]
[1737038456539,2.85047701,3319.4,3318.6,9.31790454]
[1737038456832,0.60278,3318.8,3318.6,9.31790454]
[1737038457037,2.85047701,3319.0,3318.6,9.31790454]
[1737038457239,0.60279,3318.7,3318.6,9.31790454]
[1737038457626,0.532,3319.4,3318.6,9.31790454]
[1737038457627,0.60273,3319.1,3318.6,9.31790454]
[1737038457938,3.81051,3319.2,3318.9,0.60276]
[1737038458143,0.60264,3319.6,3319.2,0.60269]
[1737038458742,0.60267,3319.4,3318.8,3.2078]
[1737038459038,3.2078,3319.8,3318.8,3.2078]
[1737038459230,0.60267,3319.4,3319.1,0.60271]
[1737038459431,3.2078,3319.8,3318.8,3.2078]
[1737038459639,0.60267,3319.4,3319.3,0.00215641]
[1737038460537,3.2078,3319.8,3319.3,0.00215641]
[1737038461041,3.81047,3319.4,3319.3,0.00215641]
[1737038461634,3.2078,3319.8,3319.3,0.00215641]
[1737038462339,3.2078,3319.8,3319.4,40.8]
[1737038462737,3.2078,3320.8,3319.6,3.2078]
[1737038463035,4.68411984,3321.1,3320.2,3.2078]
[1737038463036,3.53295773,3321.1,3320.2,3.2078]
[1737038463339,3.53295773,3321.1,3320.8,3.2078]
[1737038463647,0.60238,3321.0,3320.8,3.81021]
[1737038463827,0.60239,3320.9,3320.8,3.2078]
[1737038464027,3.2078,3320.9,3319.9,3.7253]
[1737038464231,0.60261,3319.7,3319.6,1.374]
[1737038464426,3.2078,3320.0,3319.3,3.20995641]
[1737038464427,0.60267,3319.4,3319.3,3.20995641]
[1737038464626,0.60267,3319.4,3319.3,0.00215641]
[1737038465440,3.0125,3320.4,3319.5,0.60264]
[1737038465441,1.50624,3320.4,3319.5,0.60264]
[1737038465637,0.6026,3319.8,3319.5,0.60263]
[1737038465830,3.2078,3320.2,3319.3,3.20995641]
[1737038466036,3.2078,3320.8,3319.7,3.2078]
[1737038466236,0.60259,3319.8,3319.7,3.2078]
[1737038466432,0.60259,3319.9,3319.6,1.374]
[1737038466638,0.60257,3320.0,3319.6,4.5818]
[1737038466934,3.2078,3319.8,3319.3,0.00215641]
[1737038467139,3.81047,3319.4,3319.3,0.00215641]
[1737038468639,0.60264,3319.6,3319.4,0.60265]
[1737038468837,3.2078,3320.1,3319.5,3.2078]
[1737038469136,3.2078,3320.1,3319.6,0.5375]
[1737038469344,3.2078,3320.1,3319.6,1.9105]
[1737038469937,3.2078,3320.1,3319.3,0.00215641]
[1737038470143,0.60267,3319.4,3319.3,0.00215641]
[1737038471439,5.60267,3319.4,3319.3,0.00215641]
[1737038471940,0.60267,3319.4,3319.3,0.00215641]
[1737038475235,5.60267,3319.4,3319.3,6.41e-06]
[1737038481240,0.60297,3317.7,3317.6,0.4645]
[1737038481442,0.60315,3316.8,3316.6,3.81097]
[1737038481641,3.2078,3317.1,3316.3,1.3929]
[1737038482148,0.6032,3316.5,3316.3,1.99612]
[1737038482346,3.2078,3317.1,3316.3,1.3929]
[1737038482542,6.42744981,3317.8,3316.3,1.3929]
[1737038482743,0.60307,3317.2,3317.0,0.60309]
[1737038482945,0.60303,3317.5,3317.2,0.60307]
[1737038483144,0.60303,3317.4,3317.3,1.4156]
[1737038483950,3.81083,3317.4,3317.3,1.4156]
[1737038484152,3.81083,3317.4,3316.4,3.2078]
[1737038484153,3.2078,3317.4,3316.8,1.374]
[1737038484342,0.60317,3316.6,3316.5,1.4363]
[1737038484653,1.50754,3317.5,3316.5,1.4363]
[1737038484853,3.2078,3317.8,3316.8,3.2078]
[1737038485151,0.60312,3316.9,3316.8,3.2078]
[1737038485749,3.2078,3317.4,3316.6,40.8]
[1737038485955,1.50763,3317.3,3316.5,1.4363]
[1737038486157,3.2078,3317.4,3316.5,1.4363]
[1737038486353,0.60313,3316.9,3316.7,0.60315]
[1737038486556,0.60314,3316.8,3316.7,40.8]
[1737038486747,0.60313,3316.9,3316.7,41.40316]
[1737038486947,0.60314,3316.8,3316.7,40.8]
[1737038488047,4.71538,3317.4,3316.5,1.4363]
[1737038488048,0.60317,3316.6,3316.5,1.4363]
[1737038489153,0.60328,3316.0,3315.9,0.4894]
[1737038489948,3.2078,3316.0,3315.6,0.9517]
[1737038490153,0.60334,3315.7,3315.6,0.4914]
[1737038490655,3.21964981,3315.8,3314.4,0.4603]
[1737038490857,0.60347,3315.0,3314.5,41.7695]
[1737038491153,0.60348,3315.0,3314.7,0.60351]
[1737038491450,3.2078,3315.6,3314.5,41.7695]
[1737038491655,0.4892,3316.7,3314.5,0.9695]
[1737038491656,0.60354,3314.6,3314.5,0.9695]
[1737038491856,3.2078,3315.2,3314.5,0.9695]
[1737038492158,0.60354,3314.6,3314.5,0.9695]
[1737038492749,6.374,3314.6,3314.4,3.2078]
[1737038493056,5.0357,3314.5,3312.4,1.31901944]
[1737038493355,5.0357,3314.5,3312.1,9.35485974]
[1737038493356,3.2078,3312.6,3312.1,9.35485974]
[1737038494158,7.03142981,3312.2,3312.1,9.35485974]
[1737038494366,7.03142981,3312.2,3311.6,3.81187]
[1737038494367,6.42744981,3312.2,3311.4,9.35485974]
[1737038494659,7.03154981,3311.5,3311.4,9.35485974]
[1737038495249,7.03154981,3311.5,3311.4,8.33086974]
[1737038495454,9.35400182,3311.5,3311.4,8.33086974]
[1737038495954,9.35400182,3311.5,3311.4,7.62017974]
[1737038496154,14.35400182,3311.5,3311.4,6.17173974]
[1737038496361,0.60416,3311.2,3311.1,11.69357468]
[1737038496754,5.16416306,3311.2,3310.0,0.4959]
[1737038496953,3.2078,3310.6,3310.0,0.4959]
[1737038497148,3.2078,3310.6,3310.2,0.60433]
[1737038497355,3.2078,3311.5,3310.5,3.2078]
[1737038497663,3.21964981,3312.1,3311.1,3.2078]
[1737038497961,1.50961,3313.0,3311.5,3.8119]
[1737038497962,0.60396,3312.3,3311.5,3.8119]
[1737038498152,1.50961,3313.0,3311.2,1.449]
[1737038498153,3.2078,3313.0,3311.9,3.2078]
[1737038498466,3.2078,3312.6,3311.9,3.2078]
[1737038498762,3.2078,3313.0,3311.9,3.2078]
[1737038498950,0.60385,3312.9,3312.3,3.2078]
[1737038499152,1.74811545,3313.0,3312.7,3.2078]
[1737038499453,0.60383,3313.0,3312.4,2.05293]
[1737038499659,0.60383,3313.1,3312.4,2.05293]
[1737038499857,3.81161,3313.2,3312.5,0.60392]
[1737038500153,0.60381,3313.1,3312.5,0.60391]
[1737038500355,0.60383,3313.0,3312.4,2.05293]
[1737038500660,0.60377,3313.4,3312.8,40.8]
[1737038500859,0.60375,3313.5,3312.8,41.40386]
[1737038501057,3.2078,3314.0,3312.6,3.2078]
[1737038501259,3.2078,3314.0,3312.4,1.449]
[1737038501260,0.60375,3313.5,3313.0,3.2078]
[1737038501558,3.2078,3313.6,3313.0,3.2078]
[1737038501859,3.2078,3314.0,3313.0,3.2078]
[1737038502062,3.2078,3314.0,3313.1,40.8]
[1737038502262,0.60379,3313.2,3313.0,3.2078]
[1737038502459,0.60379,3313.2,3312.7,0.60388]
[1737038502460,3.2078,3313.6,3312.6,3.2078]
[1737038502663,0.60383,3313.0,3312.1,3.2078]
[1737038502966,0.60384,3313.0,3312.5,3.2078]
[1737038503262,3.2078,3313.2,3312.5,3.2078]
[1737038503462,0.21861991,3313.5,3312.9,0.60384]
[1737038503463,0.60374,3313.5,3312.9,0.60384]
[1737038503664,0.60379,3313.3,3312.7,0.60387]
[1737038503958,3.2078,3313.6,3312.6,1.449]
[1737038504166,0.60382,3313.1,3312.7,0.60388]
[1737038504860,3.23571981,3314.3,3312.1,40.8]
[1737038504861,3.2078,3313.0,3312.2,1.449]
[1737038505056,0.6039,3312.7,3312.2,0.60398]
[1737038505257,0.60392,3312.5,3312.1,45.4568]
[1737038505457,0.60394,3312.5,3312.1,3.2078]
[1737038505664,0.60391,3312.6,3312.2,0.60396]
[1737038505855,3.2078,3313.0,3312.1,3.2078]
[1737038506053,0.60387,3312.8,3312.5,3.2078]
[1737038506360,0.6039,3312.6,3312.5,3.2078]
[1737038506764,0.60395,3312.4,3312.1,3.2078]
[1737038507065,1.77545656,3312.9,3312.1,3.2078]
[1737038507256,0.60392,3312.5,3312.2,0.60396]
[1737038507462,0.60398,3312.2,3312.1,3.2078]
[1737038508157,3.2078,3313.0,3312.1,3.2078]
[1737038508563,0.60385,3312.9,3312.4,0.60394]
[1737038508760,0.60392,3312.5,3312.1,3.2078]
[1737038508966,0.6039,3312.7,3312.3,0.60395]
[1737038509267,0.60398,3312.2,3312.1,3.2078]
[1737038509457,1.72077517,3312.9,3312.2,0.60396]
[1737038509654,0.60392,3312.5,3312.1,3.81179]
[1737038509866,0.60396,3312.3,3312.1,3.2078]
[1737038510061,3.2078,3313.0,3312.1,3.2078]
[1737038510259,3.2078,3313.0,3312.0,0.4538]
[1737038510260,0.60388,3312.8,3312.6,3.2078]
[1737038510465,0.60388,3312.7,3312.6,3.2078]
[1737038510658,0.60396,3312.3,3312.2,3.2078]
[1737038511667,0.60407,3311.7,3311.6,3.2078]
[1737038512056,4.71775,3312.2,3311.2,3.2078]
[1737038512255,0.60414,3311.3,3311.2,3.2078]
[1737038512455,3.2078,3312.2,3310.9,0.9638]
[1737038512456,0.60419,3311.0,3310.9,0.9638]
[1737038512658,0.60419,3311.0,3310.7,3.2078]
[1737038512659,0.60423,3310.8,3310.7,3.2078]
[1737038513365,6.42744981,3311.3,3310.2,3.2078]
[1737038513561,0.60432,3310.3,3310.2,3.2078]
[1737038514371,3.21964981,3310.3,3309.6,3.2078]
[1737038514663,0.60443,3309.7,3309.6,3.2078]
[1737038515363,3.9123068,3309.7,3309.6,3.2078]
[1737038515568,1.51114,3309.6,3308.7,3.2078]
[1737038515770,1.51114,3309.6,3308.9,40.8]
[1737038515771,0.60456,3309.0,3308.9,40.8]
[1737038516063,0.6046,3308.8,3308.7,3.2078]
[1737038516367,3.2078,3309.1,3308.3,3.2078]
[1737038516565,0.60467,3308.4,3308.3,3.2078]
[1737038516864,0.60474,3308.1,3307.8,3.2078]
[1737038517074,0.19184499,3308.4,3307.8,3.2078]
[1737038517263,7.93894981,3308.9,3307.8,3.2078]
[1737038517462,0.60475,3308.0,3307.8,3.2078]
[1737038517663,0.60476,3307.9,3307.8,3.2078]
[1737038517866,0.60469,3308.3,3307.5,0.60482]
[1737038518065,0.60477,3307.9,3307.4,10.60484]
[1737038518273,3.2078,3307.6,3307.4,10.0]
[1737038518567,0.68709652,3307.5,3307.4,10.0]
[1737038519171,5.68709652,3307.5,3307.4,10.0]
[1737038519467,7.13809652,3307.5,3307.4,8.25874]
[1737038519665,0.68709652,3307.5,3307.4,8.25874]
[1737038519865,0.60483,3307.5,3307.4,8.25874]
[1737038520370,0.60476,3308.0,3307.5,0.60483]
[1737038520668,3.21964981,3308.7,3307.7,3.2078]
[1737038520871,3.21964981,3308.7,3308.1,3.2078]
[1737038521068,0.60482,3307.6,3307.5,3.6647]
[1737038521277,0.60483,3307.5,3307.4,8.25874]
[1737038521766,0.7967794,3307.5,3307.4,8.25874]
[1737038521963,5.7967794,3307.5,3307.4,8.25874]
[1737038522365,0.7967794,3307.5,3307.4,8.25874]
[1737038522572,0.60481,3307.7,3307.4,8.25874]
[1737038522764,3.21964981,3308.2,3307.4,8.25874]
[1737038522964,0.60472,3308.1,3307.4,1.9042239]
[1737038523174,0.60483,3307.5,3307.4,1.9042239]
[1737038523878,3.2078,3307.9,3307.4,1.9042239]
[1737038524072,0.60478,3307.9,3307.7,3.2078]
[1737038524271,0.60478,3307.8,3307.7,3.2078]
[1737038524471,0.60483,3307.6,3307.4,1.9042239]
[1737038524774,0.60483,3307.5,3307.4,1.9042239]
[1737038524975,1.64157011,3307.5,3307.4,1.9042239]
[1737038525175,0.60482,3307.6,3307.4,1.9042239]
[1737038525376,0.60483,3307.5,3307.4,1.9042239]
[1737038525572,3.2078,3308.0,3307.4,42.7042239]
[1737038525573,0.60483,3307.6,3307.4,42.7042239]
[1737038525871,0.72148602,3308.5,3307.4,42.7042239]
[1737038526072,3.2078,3308.6,3307.7,3.2078]
[1737038526268,4.71942,3308.6,3307.4,42.7042239]
[1737038526476,0.60483,3307.5,3307.4,42.7042239]
[1737038526667,0.60481,3307.7,3307.4,42.7042239]
[1737038526876,0.60483,3307.6,3307.4,42.7042239]
[1737038527177,3.2078,3308.2,3307.4,42.7042239]
[1737038527178,0.60483,3307.5,3307.4,1.9042239]
[1737038527566,3.2078,3307.8,3307.4,1.9042239]
[1737038527970,3.2078,3308.4,3307.6,3.2078]
[1737038528171,0.6047,3308.3,3307.9,0.60475]
[1737038528366,3.2078,3308.4,3307.6,3.2078]
[1737038528575,0.6048,3307.7,3307.6,3.2078]
[1737038530081,3.2078,3308.4,3307.6,3.2078]
[1737038530275,3.2078,3308.6,3307.6,44.0078]
[1737038530672,3.2078,3308.6,3307.6,3.2078]
[1737038530673,0.6048,3307.7,3307.6,3.2078]
[1737038531189,0.60473,3308.1,3307.6,3.2078]
[1737038531385,0.60472,3308.2,3307.9,0.60474]
[1737038531677,0.60473,3308.1,3307.8,0.60476]
[1737038531869,3.2078,3308.6,3307.6,3.2078]
[1737038532182,0.6048,3307.7,3307.6,3.2078]
[1737038532775,3.2078,3307.8,3307.4,1.9042239]
[1737038532978,0.60483,3307.5,3307.4,0.5503939]
[1737038533272,0.76936054,3307.5,3307.4,3.9e-06]
[1737038533480,5.76936054,3307.5,3307.4,3.9e-06]
[1737038534480,3.21964981,3306.7,3305.9,3.2078]
[1737038534676,0.60511,3306.0,3305.9,3.2078]
[1737038535576,3.2078,3306.7,3305.9,3.2078]
[1737038535783,3.2078,3307.3,3306.3,3.2078]
[1737038535970,1.51223,3307.2,3306.3,3.2078]
[1737038536175,3.33649882,3307.1,3306.3,3.2078]
[1737038536372,5.17585,3308.1,3306.9,3.2078]
[1737038536582,0.60493,3307.0,3306.9,3.2078]
[1737038536882,0.60504,3306.4,3306.3,3.2078]
[1737038537076,0.60504,3306.4,3306.0,0.6051]
[1737038537077,0.60511,3306.0,3305.9,3.2078]
[1737038537478,1.5125,3306.7,3305.9,3.2078]
[1737038537683,3.2078,3306.8,3305.9,44.0078]
[1737038537983,3.21964981,3307.3,3306.4,3.2078]
[1737038538175,3.2078,3307.6,3306.8,3.2078]
[1737038538574,0.60483,3307.5,3307.0,0.60491]
[1737038538775,3.2078,3308.1,3307.2,3.2078]
[1737038538982,0.6048,3307.7,3307.3,0.60487]
[1737038539178,3.2078,3308.1,3307.2,3.2078]
[1737038539575,0.60493,3307.0,3306.9,0.9675]
[1737038539781,3.21964981,3307.8,3306.9,0.9675]
[1737038539982,3.2078,3308.1,3307.3,0.60485]
[1737038540171,1.11402403,3307.7,3307.1,0.60491]
[1737038540376,1.11402403,3307.7,3307.1,0.6049]
[1737038540572,3.2078,3308.1,3307.0,0.60492]
[1737038540573,0.60491,3307.2,3307.0,0.60492]
[1737038540777,1.51199,3307.8,3307.0,0.60492]
[1737038540981,3.43593879,3307.6,3307.1,0.6049]
[1737038541174,3.43593879,3307.6,3306.9,0.9675]
[1737038541175,0.60491,3307.1,3307.0,0.60492]
[1737038541380,1.512,3307.7,3307.1,0.6049]
[1737038541581,0.60493,3307.0,3306.9,0.9675]
[1737038542086,3.2078,3307.7,3306.9,0.9675]
[1737038542279,0.60485,3307.5,3307.1,3.2078]
[1737038542587,3.19116079,3307.8,3307.1,3.2078]
[1737038542887,3.2078,3308.1,3307.1,3.2078]
[1737038543185,2.83444069,3308.0,3307.1,3.2078]
[1737038543489,0.60474,3308.0,3307.9,0.60475]
[1737038543688,6.42744981,3308.8,3307.6,3.2078]
[1737038543881,3.21964981,3309.3,3308.1,3.2078]
[1737038544185,0.60463,3308.6,3308.5,3.2078]
[1737038544580,0.60459,3308.9,3308.8,0.60459]
[1737038544781,3.2078,3309.4,3308.5,3.2078]
[1737038545280,0.60469,3308.3,3308.2,0.4971]
[1737038545482,1.51168,3308.4,3307.6,3.2078]
[1737038545685,0.6048,3307.7,3307.6,3.2078]
[1737038545987,3.2078,3308.1,3307.5,0.60483]
[1737038546198,0.60474,3308.0,3307.5,0.60482]
[1737038546382,1.5117,3308.4,3307.6,3.2078]
[1737038546583,3.2078,3308.6,3308.0,3.2078]
[1737038546780,0.60477,3307.9,3307.8,0.60478]
[1737038547085,1.51164,3308.5,3307.6,3.2078]
[1737038547390,0.6048,3307.7,3307.6,3.2078]
[1737038547590,0.60479,3307.8,3307.6,3.8126]
[1737038547782,0.60485,3307.4,3307.3,1.476]
[1737038547984,3.2078,3307.8,3306.9,0.9673]
[1737038548183,0.60493,3307.0,3306.9,0.9673]
[1737038548384,4.73162981,3307.8,3306.9,0.9673]
[1737038548581,0.60488,3307.3,3307.1,0.60489]
[1737038548785,1.51187,3308.0,3306.9,0.9673]
[1737038549086,3.32192023,3308.0,3307.0,3.2078]
[1737038549289,3.2078,3307.7,3306.9,0.9673]
[1737038549495,0.60493,3307.0,3306.9,0.9673]
[1737038549692,3.21964981,3307.3,3306.3,0.4711]
[1737038549991,0.60504,3306.5,3306.3,1.07615]
[1737038550193,1.51223,3307.2,3306.3,0.4711]
[1737038550382,0.468,3307.6,3306.7,3.81276]
[1737038550383,1.5121,3307.5,3306.7,3.81276]
[1737038550587,0.60496,3306.9,3306.7,0.60497]
[1737038550806,0.60496,3306.9,3306.8,0.4728]
[1737038551485,0.60504,3306.4,3306.3,1.07615]
[1737038551701,0.60504,3306.4,3306.3,0.4711]
[1737038551994,0.60509,3306.1,3306.0,0.46]
[1737038552196,0.60509,3306.1,3306.0,1.0651]
[1737038552393,0.60507,3306.3,3306.2,0.60507]
[1737038552592,1.51246,3306.7,3306.0,0.46]
[1737038552797,0.60509,3306.1,3306.0,1.0651]
[1737038552994,0.60502,3306.5,3306.4,0.60503]
[1737038553193,0.60502,3306.6,3306.4,0.60503]
[1737038553406,3.2078,3306.8,3306.3,3.2078]
[1737038553706,0.60495,3306.9,3306.8,0.60496]
[1737038553891,0.60497,3306.8,3306.6,0.60498]
[1737038554088,0.60497,3306.8,3306.7,40.8]
[1737038554296,0.60502,3306.5,3306.4,1.476]
[1737038554502,3.2078,3306.8,3306.0,0.46]
[1737038554700,0.60502,3306.5,3306.4,0.60502]
[1737038554997,0.60502,3306.5,3306.3,3.81284]
[1737038555300,0.60503,3306.5,3306.3,3.81284]
[1737038555497,3.2078,3306.8,3306.3,3.2078]
[1737038555794,0.60504,3306.4,3306.0,1.0651]
[1737038555992,0.60509,3306.1,3306.0,0.46]
[1737038556495,0.60511,3306.0,3305.9,3.2078]
[1737038557488,9.70769861,3306.0,3304.6,3.2078]
[1737038557695,9.70769861,3306.0,3304.8,0.4534039]
[1737038557696,6.45625562,3305.4,3304.8,0.4534039]
[1737038557996,0.60531,3304.9,3304.8,0.4534039]
[1737038558190,0.60526,3305.2,3304.9,0.4534039]
[1737038558386,0.9462,3305.9,3305.4,0.4534039]
[1737038558593,0.60513,3305.9,3305.8,0.4534039]
[1737038558802,3.2078,3306.8,3305.8,3.6612039]
[1737038559000,9.01332075,3306.8,3305.8,3.2078]
[1737038559189,5.80552075,3306.8,3306.7,0.4534039]
[1737038559390,3.20137302,3306.7,3306.4,0.4534039]
[1737038559695,7.50190992,3306.8,3306.7,0.4534039]
[1737038559901,5.80552075,3306.8,3306.7,0.4534039]
[1737038560291,6.41048075,3306.8,3306.7,0.4534039]
[1737038560493,2.32457164,3307.0,3306.7,0.4534039]
[1737038560693,2.32457164,3307.0,3306.9,3.81274]
[1737038560896,1.57982521,3307.1,3307.0,1.0583339]
[1737038561097,3.90284329,3307.4,3307.3,0.60487]
[1737038561297,3.90284329,3307.4,3307.3,8.52974688]
[1737038561506,3.90284329,3307.4,3307.3,0.60487]
[1737038562003,3.2078,3308.2,3307.4,0.60485]
[1737038562302,0.60497,3306.8,3306.5,0.60501]
[1737038562595,0.60493,3307.0,3306.9,3.2078]
[1737038562998,3.2078,3307.8,3306.9,3.81273]
[1737038562999,0.60483,3307.5,3306.9,3.81273]
[1737038563198,1.24161015,3308.1,3306.9,44.0078]
[1737038563394,0.77831015,3308.1,3307.5,3.2078]
[1737038563598,6.45487688,3307.9,3307.1,3.2078]
[1737038563795,0.60489,3307.2,3307.1,3.2078]
[1737038564193,1.22817204,3307.8,3307.1,3.2078]
[1737038564396,0.60489,3307.2,3307.1,3.2078]
[1737038564699,0.60486,3307.4,3307.1,3.2078]
[1737038565002,6.45487688,3307.9,3307.1,2.97151339]
[1737038565201,3.2078,3307.9,3307.1,3.2078]
[1737038565398,3.2078,3308.4,3307.6,3.2078]
[1737038565603,0.60469,3308.3,3307.7,0.60478]
[1737038565802,0.6047,3308.3,3308.0,0.60473]
[1737038566096,9.01332075,3308.5,3307.6,3.2078]
[1737038566400,3.2078,3308.1,3307.1,0.465]
[1737038566704,0.60492,3307.1,3306.9,0.4883]
[1737038566899,0.60484,3307.5,3307.0,3.2078]
[1737038567200,0.60486,3307.4,3307.1,0.6049]
[1737038567400,3.2078,3307.7,3306.9,0.4883]
[1737038567700,0.60479,3307.8,3307.5,0.60482]
[1737038568002,0.60474,3308.1,3307.7,0.60479]
[1737038568200,0.60469,3308.3,3308.0,0.60473]
[1737038568396,5.80552075,3308.4,3307.5,0.472]
[1737038568710,5.80552075,3308.4,3307.5,41.272]
[1737038568899,0.60473,3308.1,3307.8,0.60477]
[1737038569094,5.80552075,3308.4,3307.5,40.8]
[1737038569308,5.80552075,3308.4,3307.4,3.2078]
[1737038569496,0.60483,3307.5,3307.4,3.2078]
[1737038569806,3.2078,3308.1,3307.1,3.2078]
[1737038570103,3.2078,3308.1,3306.9,0.9603]
[1737038570300,4.71964,3308.1,3307.0,3.2078]
[1737038570600,4.71964,3308.1,3306.9,0.9603]
[1737038570601,0.60492,3307.1,3306.9,0.9603]
[1737038570904,3.2078,3307.9,3306.9,0.9603]
[1737038571312,1.51214,3307.4,3306.6,3.2078]
[1737038571496,3.2078,3307.5,3306.8,0.60495]
[1737038571696,0.60492,3307.1,3306.6,3.2078]
[1737038571895,0.60498,3306.7,3306.6,3.2078]
[1737038572106,3.2078,3307.0,3306.4,1.47]
[1737038572297,0.60505,3306.3,3306.2,3.2078]
[1737038572497,3.2078,3307.0,3306.2,3.2078]
[1737038573297,0.60503,3306.5,3306.3,0.60505]
[1737038573498,3.2078,3307.0,3306.2,3.2078]
[1737038573699,3.2078,3307.0,3306.6,3.2078]
[1737038574306,0.60505,3306.3,3306.2,3.2078]
[1737038575396,0.60515,3305.8,3305.7,0.4542]
[1737038575598,1.51264,3306.3,3305.6,3.2078]
[1737038575911,3.2078,3305.9,3305.2,4.7328025]
[1737038576103,0.60524,3305.3,3305.2,4.7328025]
[1737038576306,1.51287,3305.8,3304.9,1.07499]
[1737038576605,1.51292,3305.7,3304.9,0.4697]
[1737038576807,0.60535,3304.7,3304.6,4.7328025]
[1737038577306,0.4503,3305.1,3304.6,4.7328025]
[1737038577500,3.2078,3305.4,3304.6,4.7328025]
[1737038577702,3.2078,3305.4,3304.5,3.2078]
[1737038577901,3.2078,3305.4,3304.9,3.2078]
[1737038578116,3.81303,3305.4,3305.2,0.60525]
[1737038578305,0.45416655,3305.6,3305.5,0.6052]
[1737038579014,5.80552075,3306.3,3305.5,45.8]
[1737038579213,5.80552075,3306.3,3305.5,40.8]
[1737038579404,0.60518,3305.6,3305.5,40.8]
[1737038579707,0.60527,3305.1,3305.0,0.9637]
[1737038580019,3.2078,3305.6,3305.0,1.09208]
[1737038580020,0.60526,3305.2,3305.0,1.09208]
[1737038580205,0.60527,3305.2,3305.0,1.09208]
[1737038580403,0.60527,3305.2,3305.0,1.09209]
[1737038580603,3.2078,3306.0,3305.0,5.4868]
[1737038580805,3.2078,3306.0,3305.2,3.2078]
[1737038581006,0.6052,3305.5,3305.2,3.2078]
[1737038581207,4.15777688,3306.8,3304.2,3.2078]
[1737038581208,3.24707688,3305.3,3304.2,3.2078]
[1737038581406,3.2078,3304.8,3303.8,0.9451]
[1737038581610,6.45487688,3304.8,3304.1,3.2078]
[1737038581809,0.60542,3304.3,3304.1,3.2078]
[1737038582003,0.60542,3304.4,3304.1,3.2078]
[1737038582211,0.60548,3304.0,3303.9,4.7328025]
[1737038582503,0.60548,3304.0,3303.7,6.93734409]
[1737038582504,4.6788,3304.0,3303.7,6.93734409]
[1737038582705,4.6788,3304.0,3301.8,23.38714937]
[1737038582706,0.60551,3303.8,3301.8,23.38714937]
[1737038582912,0.4625,3303.9,3300.1,0.24530781]
[1737038583110,30.28038,3303.4,3297.4,1.00217117]
[1737038583420,0.7854,3297.2,3297.1,21.95217671]
[1737038583724,1.39212,3297.2,3297.1,21.95217671]
[1737038583914,3.2078,3297.2,3297.1,13.91596986]
[1737038584208,3.2078,3297.2,3297.0,3.2078]
[1737038584209,3.16400403,3297.2,3297.0,3.2078]
[1737038584513,3.85375688,3297.5,3296.8,13.43746094]
[1737038584707,3.85375688,3297.5,3296.3,0.0057539]
[1737038584708,0.45515248,3297.2,3296.3,0.0057539]
[1737038584909,0.05515248,3297.2,3297.1,14.04420094]
[1737038585117,3.24707688,3299.4,3297.6,13.43746094]
[1737038585409,3.24707688,3299.4,3298.5,12.72568094]
[1737038585605,3.24707688,3298.8,3298.2,12.72568094]
[1737038585809,3.2078,3300.4,3298.7,3.2078]
[1737038586011,3.2078,3301.6,3299.9,3.2078]
[1737038586204,3.24707688,3301.7,3301.1,12.72568094]
[1737038586406,252.66409138,3298.7,3297.1,3.2078]
[1737038586613,252.66409138,3298.7,3296.3,0.0057539]
[1737038586614,106.66409138,3298.7,3297.6,3.2078]
[1737038586813,3.24707688,3301.1,3298.0,3.24707688]
[1737038587008,3.24707688,3302.3,3301.0,40.8]
[1737038587209,0.60625,3299.8,3298.8,3.2078]
[1737038587508,0.60665,3297.6,3297.5,3.2078]
[1737038587708,3.1888964,3299.7,3297.5,44.0078]
[1737038587905,11.35641503,3299.3,3299.1,3.2078]
[1737038588210,3.2078,3300.4,3298.9,6.47202029]
[1737038588514,3.18588194,3300.8,3300.3,6.47202029]
[1737038588706,1.49789842,3303.5,3300.7,6.47202029]
[1737038588707,3.2078,3303.5,3300.7,6.47202029]
[1737038588912,0.4597,3304.1,3301.5,3.2078]
[1737038588913,0.06054368,3303.4,3301.5,3.2078]
[1737038589211,1.73579482,3302.6,3301.4,3.2078]
[1737038589510,9.08086101,3301.6,3301.1,3.2078]
[1737038589711,9.08086101,3301.6,3300.8,0.60605]
[1737038589914,9.08086101,3301.6,3301.5,3.2078]
[1737038590117,9.08086101,3301.6,3301.0,0.60603]
[1737038590417,9.71558508,3301.6,3301.4,3.2078]
[1737038590613,9.08086101,3301.6,3301.4,3.2078]
[1737038590815,3.25799567,3302.3,3301.4,3.2078]
[1737038591113,1.07511835,3302.1,3301.7,3.2078]
[1737038591305,1.07511835,3302.1,3301.3,3.2078]
[1737038591506,0.49546232,3302.2,3301.3,3.2078]
[1737038591712,3.25799567,3301.5,3301.3,3.2078]
[1737038592509,3.25799567,3302.0,3301.0,0.60602]
[1737038592711,3.25799567,3302.0,3301.3,3.2078]
[1737038592909,4.85610994,3302.0,3301.4,0.60595]
[1737038593108,3.25799567,3303.6,3301.9,0.60586]
[1737038593312,3.25799567,3303.6,3303.3,3.2078]
[1737038593521,3.25799567,3304.1,3303.3,3.2078]
[1737038593724,3.25799567,3304.5,3303.8,3.2078]
[1737038593911,3.25799567,3304.0,3303.9,0.58481]
[1737038594113,3.25799567,3305.1,3304.1,0.60546]
[1737038594410,0.60522,3305.4,3302.7,1.51426]
[1737038594411,3.25799567,3304.7,3304.4,3.2078]
[1737038595018,3.25799567,3304.7,3303.3,12.724]
[1737038595019,3.25799567,3304.5,3303.7,0.60553]
[1737038595223,3.25799567,3303.8,3303.4,0.4569]
[1737038595629,3.25799567,3303.8,3302.2,3.2078]
[1737038595917,3.2078,3303.5,3302.1,3.2078]
[1737038596117,3.25799567,3302.2,3302.1,0.60582]